[Event "Rapid Shavuot-A 2023"]
[Site "Ramat Gan"]
[Date "2023.05.25"]
[Round "1.6"]
[White "Levin, Guy"]
[Black "Kereth, Oren"]
[Result "1-0"]
[ECO "A07"]
[WhiteElo "2424"]
[BlackElo "2080"]
[Annotator "TA"]
[PlyCount "76"]
[EventDate "2023.05.19"]
[EventType "swiss"]
[EventCountry "ISR"]
[SourceTitle "playchess.com"]
[Source "ChessBase"]
[SourceQuality "1"]
[TimeControl "900+5"]

{[%evp 9,76,10,23,13,14,22,8,7,11,6,0,4,25,12,0,0,47,39,77,89,82,83,84,87,154,97,80,27,58,37,41,33,85,30,200,203,227,212,371,371,363,371,385,309,276,283,304,287,363,362,385,354,391,383,415,392,410,409,689,659,647,613,6379,5898,29962,29962,29950,6804,1897]} 1. Nf3 {[%emt 0:00:02]} Nf6 {[%emt 0:00:10]} 2. g3 {[%emt 0:00:01]} d5 {[%emt 0:00:12]} 3. Bg2 {[%emt 0:00:02]} Bf5 {[%emt 0:00:41]} 4. O-O {[%emt 0:00:06]} e6 {[%emt 0:00:20]} 5. d3 {[%emt 0:00:03]} Be7 {[%emt 0:01:28]} 6. b3 {[%emt 0:00:01] A07: Réti Opening: New York and Capablanca Systems.} O-O {[%emt 0:00:31]} 7. Bb2 {[%emt 0:00:09]} Nbd7 {[%emt 0:02:09]} 8. Nbd2 {[%emt 0:00:02] The position is equal.} a5 {[%emt 0:00:31]} 9. a3 {[%emt 0:00:02]} h6 {[%emt 0:00:38]} 10. Re1 {[%emt 0:00:17]} Nc5 {[%emt 0:00:28]} 11. c4 {[%emt 0:00:45]} c6 {[%emt 0:03:07]} 12. Qc2 {[%emt 0:00:26] [#]} b5 $146 {[%emt 0:00:42]} (12... Ncd7 $11) ({Predecessor:} 12... Bh7 13. Bc3 Ne8 14. b4 axb4 15. axb4 Rxa1 16. Rxa1 Na6 17. Qb2 Bf6 18. Ne5 Nd6 19. Nxc6 Bxc3 20. Qxc3 bxc6 21. Rxa6 {1-0 Schuh,K (2243)-Egle,M (2120) Oberliga Wuerttemberg 1617 2016 (6.3)}) 13. Nd4 {[%emt 0:00:07][%csl LRb5,LRc6]} Qb6 {[%emt 0:00:57]} 14. Nxf5 {[%emt 0:01:11]} exf5 {[%emt 0:00:06]} 15. Bd4 {[%emt 0:00:12] cxd5 would be deadly.} Qc7 {[%emt 0:01:34]} 16. cxb5 {[%emt 0:00:41]} Ne6 {[%emt 0:00:30]} (16... cxb5 $142 17. Nf1 Rfc8) 17. Nf3 {[%emt 0:01:09]} (17. Qxc6 $2 Qxc6 18. bxc6 Nxd4 $19) ({Better is} 17. Bxf6 $1 Bxf6 18. Rac1) 17... cxb5 $16 {[%emt 0:00:36]} 18. Qb2 {[%emt 0:00:01]} (18. Qxc7 $16 Nxc7 19. Ne5) 18... Rac8 {[%emt 0:00:21]} 19. Rec1 {[%emt 0:00:15] Dodges b4} Qd7 {[%emt 0:00:26]} 20. Bc3 {[%emt 0:01:32]} a4 {[%emt 0:00:28]} (20... b4 $14 21. axb4 axb4) 21. Bh3 {[%emt 0:00:20] A strong pair of Bishops.} ({White should play} 21. Nd4 $16) 21... Nc5 $2 {[%emt 0:00:45] [#] Loses the game.} (21... Ng4 $11 {and Black is okay.}) 22. Nd4 $1 $18 {[%emt 0:00:02]} g6 {[%emt 0:00:05] [#]} 23. b4 {[%emt 0:00:08]} Nb7 {[%emt 0:00:05] [#]} (23... Ne6 24. Nxf5 {[%mdl 64] Discovered Attack} gxf5) 24. Nxf5 $1 {[%emt 0:00:04][%mdl 576] Discovered Attack} gxf5 {[%emt 0:00:06]} 25. Bxf6 {[%emt 0:00:02]} Nd6 {[%emt 0:00:06]} 26. Qe5 {[%emt 0:00:07]} Bxf6 {[%emt 0:00:05]} 27. Qxf6 {[%emt 0:00:02]} Qe6 {[%emt 0:00:02]} 28. Qh4 {[%emt 0:00:12]} Rxc1+ {[%emt 0:00:06]} 29. Rxc1 {[%emt 0:00:03]} Kg7 {[%emt 0:00:07]} 30. e3 {[%emt 0:00:03]} Qf6 {[%emt 0:00:07]} 31. Qf4 {[%emt 0:00:08]} Rc8 {[%emt 0:00:04]} 32. Rc5 {[%emt 0:00:08]} ({Don't do} 32. Rxc8 Nxc8 33. Bxf5 Nd6 $18) 32... Rxc5 {[%emt 0:00:06]} 33. bxc5 {[%emt 0:00:01][%cal Bb4c5,Bc5c6,Bc6c7][%mdl 4128] Endgame KQB-KQN} Qa1+ {[%emt 0:00:04]} (33... Nb7 $142 34. d4 (34. Qxf5 Qxf5 35. Bxf5 Nxc5 $17) 34... Na5) 34. Kg2 {[%emt 0:00:02] Active counter play!} Ne8 {[%emt 0:00:06]} 35. Bxf5 {[%emt 0:00:20]} Qxa3 {[%emt 0:00:04]} 36. Qe5+ {[%emt 0:00:01]} Nf6 {[%emt 0:00:01]} 37. c6 {[%emt 0:00:01]} Qc5 {[%emt 0:00:09]} 38. c7 {[%emt 0:00:05]} a3 {[%emt 0:00:06] Weighted Error Value: White=0.13 (very precise) /Black=0.51} 1-0

[Event "Rapid Shavuot-A 2023"]
[Site "Ramat Gan"]
[Date "2023.05.25"]
[Round "1.7"]
[White "Stolyarsky, Yegor"]
[Black "Mesropov, Konstantin"]
[Result "0-1"]
[ECO "A44"]
[WhiteElo "2051"]
[BlackElo "2437"]
[Annotator "TA"]
[PlyCount "112"]
[EventDate "2023.05.19"]
[EventType "swiss"]
[EventCountry "ISR"]
[SourceTitle "playchess.com"]
[Source "ChessBase"]
[SourceQuality "1"]
[TimeControl "900+5"]

{[%evp 9,112,29,68,50,109,109,151,142,159,131,123,97,102,73,74,22,56,31,105,90,113,113,102,46,47,50,57,0,0,0,14,-95,-62,-129,-50,-283,-296,-360,-352,-466,-321,-533,-464,-834,-810,-1614,-1645,-1633,-1622,-1582,-1504,-1637,-1622,-1615,-1476,-1409,-964,-916,-752,-709,-654,-697,-625,-750,-549,-536,-468,-510,-431,-681,-612,-686,-629,-892,-893,-895,-891,-858,-846,-794,-783,-1231,-1212,-29983,-29984,-29984,-29985,-29987,-29978,-29978,-29979,-29981,-29983,-29983,-29983,-29983,-29983,-29983,-29984,-29984,-29985,-29985,-29986,-29986,-29987]} 1. d4 {[%emt 0:00:04]} c5 {[%emt 0:00:05]} 2. d5 {[%emt 0:00:04]} e5 {[%emt 0:00:02]} 3. c4 {[%emt 0:00:33]} d6 {[%emt 0:00:03]} 4. Nc3 {[%emt 0:00:02]} Be7 {[%emt 0:00:03]} 5. g3 {[%emt 0:00:58]} Bg5 {[%emt 0:00:19]} 6. e3 {[%emt 0:00:03] A44: Semi-Benoni.} h5 {[%emt 0:00:16]} (6... Bh6 $14) 7. h4 $16 {[%emt 0:02:52]} Bh6 {[%emt 0:00:02]} 8. Qxh5 {[%emt 0:00:53] White is clearly better.} Nf6 {[%emt 0:00:07] [#]} 9. Qd1 $146 {[%emt 0:00:21]} ({Predecessor:} 9. Qe2 Bg4 10. f3 Bf5 11. e4 Bxc1 12. Rxc1 Bg6 13. Bh3 Nh5 14. Qf2 Na6 15. a3 {1-0 Yu,J (2315)-Khrapko,M (2065) Isolated Queens Internet op 2nd 2020 (6)}) 9... e4 {[%emt 0:00:03]} 10. Qc2 {[%emt 0:01:28]} Qe7 {[%emt 0:00:08]} 11. Bg2 {[%emt 0:01:14]} Bf5 {[%emt 0:00:25]} 12. Bd2 {[%emt 0:00:25]} (12. Bh3 $16 g6 13. Bxf5 gxf5 14. b3) 12... g6 {[%emt 0:01:24]} 13. O-O-O {[%emt 0:00:24]} Na6 {[%emt 0:00:28]} (13... Nbd7 $14) 14. a3 {[%emt 0:00:17]} Nc7 {[%emt 0:00:02]} 15. Nh3 {[%emt 0:01:29]} O-O-O {[%emt 0:02:18]} 16. b4 {[%emt 0:01:08]} (16. Rdf1 $16) 16... cxb4 $14 {[%emt 0:00:58]} 17. axb4 {[%emt 0:00:01]} Kb8 {[%emt 0:00:01][%cal Ob7b5]} 18. Kb2 {[%emt 0:01:13]} (18. Qa2 $14) 18... Bg7 $11 {[%emt 0:00:14]} 19. Ra1 {[%emt 0:01:03]} Rc8 {[%emt 0:01:02][%cal Of6d5]} 20. Qa4 {[%emt 0:00:59] [#]} (20. Kb1 $1 $11 {remains equal.}) 20... a6 $1 $17 {[%emt 0:00:01][%cal Of6d5][%mdl 1024] Hoping for ...Nfxd5! Black has strong compensation.} 21. Nf4 {[%emt 0:00:01]} (21. Qb3 $15) 21... Nd7 {[%emt 0:00:31]} (21... Na8 $17 {White must now prevent ...Nb6.} 22. Qa5 Rxc4) 22. Qa5 {[%emt 0:00:36] [#] This move loses the game for White.} (22. Rhc1 $15) 22... Ne5 $1 $19 {[%emt 0:00:10]} 23. Bf1 {[%emt 0:00:17]} (23. Nxe4 $2 Nxc4+ 24. Kc1 Nxa5 $19) 23... g5 {[%emt 0:00:27]} (23... Nf3 24. Kc1 $17) 24. Ng2 {[%emt 0:00:14]} Nf3 {[%emt 0:00:20]} 25. Be1 {[%emt 0:00:10]} (25. Kc2 {was the only defense.} Nxd2 26. Kxd2) 25... Qe5 {[%emt 0:00:29]} 26. Qa3 {[%emt 0:00:01] [#]} (26. b5 $142 Nxe1 27. Nxe1) 26... Nxd5 $1 {[%emt 0:00:20][%mdl 512] Threatens to win with ...Nxe1.} 27. cxd5 {[%emt 0:00:10]} (27. Rd1 Nb6) 27... Nxe1 {[%emt 0:00:03]} 28. Rc1 {[%emt 0:00:06]} Nd3+ {[%emt 0:00:37]} 29. Bxd3 {[%emt 0:00:01]} exd3 {[%emt 0:00:01]} 30. Rhd1 {[%emt 0:00:12] White is weak on the light squares} Qxd5 {[%emt 0:01:15]} 31. e4 {[%emt 0:00:03]} Bxe4 {[%emt 0:00:10] This pair of bishops is nice.} 32. Ne3 {[%emt 0:00:01]} Qe6 {[%emt 0:00:52]} 33. Qb3 {[%emt 0:00:20]} d5 {[%emt 0:01:28] And now ...Rxc3 would win.} 34. Ka3 {[%emt 0:00:01]} gxh4 {[%emt 0:00:59]} 35. gxh4 {[%emt 0:00:01]} Rxh4 {[%emt 0:00:15]} 36. Nexd5 {[%emt 0:00:12]} f5 {[%emt 0:00:50]} 37. Nxe4 {[%emt 0:00:05] Nc5 would be deadly.} fxe4 {[%emt 0:00:29]} ({Weaker is} 37... Qxe4 38. Rxc8+ Kxc8 39. Rxd3 $17) 38. Rxc8+ Qxc8 {[%emt 0:00:01]} 39. Nb6 {[%emt 0:00:11]} (39. Ne7 $142 Qc3 40. Qxc3 Bxc3 41. Kb3) 39... Qc3 {[%emt 0:00:13]} 40. Qxc3 {[%emt 0:00:05]} Bxc3 {[%emt 0:00:01][%mdl 4096] Endgame KRB-KRN} 41. Rc1 {[%emt 0:00:00]} d2 {[%emt 0:00:10]} 42. Rd1 {[%emt 0:00:08] [#]} Bxb4+ $1 {[%emt 0:00:14][%mdl 576] Decoy, Promotion} 43. Kb3 {[%emt 0:00:07]} a5 {[%emt 0:00:04]} 44. Nd5 {[%emt 0:00:02] Inhibits Rf4.} Rh3+ {[%emt 0:00:08]} 45. Kc4 {[%emt 0:00:06]} Rd3 {[%emt 0:00:10][%cal Ob7b5] ( -> ...b5+!)} 46. Nxb4 {[%emt 0:00:05]} axb4 {[%emt 0:00:01] Black mates.} 47. Kxb4 {[%emt 0:00:04] KR-KR} Kc7 {[%emt 0:00:05]} 48. Kc4 {[%emt 0:00:00]} Rd6 {[%emt 0:00:07]} 49. Kc3 {[%emt 0:00:05]} Kc6 {[%emt 0:00:06]} 50. Rxd2 {[%emt 0:00:09]} Rxd2 {[%emt 0:00:02]} 51. Kxd2 {[%emt 0:00:01] KPP-KP} Kd5 {[%emt 0:00:04]} 52. Kc3 {[%emt 0:00:11]} Ke5 {[%emt 0:00:03]} 53. Kc4 {[%emt 0:00:06]} Kf4 {[%emt 0:00:04]} 54. Kd5 {[%emt 0:00:06]} Kf3 {[%emt 0:00:02]} 55. Kd4 {[%emt 0:00:03]} b5 {[%emt 0:00:02][%cal Bb7b5,Bb5b4][%mdl 32]} ({Worse is} 55... Kxf2 56. Kxe4 Kg3 57. Kf5 $11) 56. Ke5 {[%emt 0:00:05]} b4 $1 {[%emt 0:00:02] Ingenious play by Mesropov!   Weighted Error Value: White=0.89/Black=0.55} ({Not} 56... Kxf2 57. Kxe4 Kg3 58. Kf5 $11) 0-1

[Event "Rapid Shavuot-A 2023"]
[Site "Ramat Gan"]
[Date "2023.05.25"]
[Round "1.8"]
[White "Mindlin, Alon"]
[Black "Katz, Kiril"]
[Result "1-0"]
[ECO "C45"]
[WhiteElo "2435"]
[BlackElo "2016"]
[Annotator "TA"]
[PlyCount "57"]
[EventDate "2023.05.19"]
[EventType "swiss"]
[EventCountry "ISR"]
[SourceTitle "playchess.com"]
[Source "ChessBase"]
[SourceQuality "1"]
[TimeControl "900+5"]

{[%evp 10,57,42,12,11,8,2,0,0,0,-10,-8,6,8,14,14,7,10,2,2,10,0,16,0,0,0,0,0,0,0,0,-8,0,0,0,0,0,0,0,0,0,0,0,-7,0,0,0,0,0,0]} 1. e4 {[%emt 0:00:02]} e5 {[%emt 0:00:01]} 2. Nf3 {[%emt 0:00:02]} Nc6 {[%emt 0:00:01]} 3. d4 {[%emt 0:00:01]} exd4 4. Nxd4 {[%emt 0:00:01]} Bb4+ {[%emt 0:00:04]} 5. c3 {[%emt 0:00:01]} Bc5 {[%emt 0:00:01]} 6. Be3 {[%emt 0:00:01] [#] Strongly threatening Nxc6.} Bb6 {[%emt 0:00:01] The position is equal. C45: Scotch Game.} 7. Nd2 {[%emt 0:00:11]} Nf6 {[%emt 0:00:08] Prevents Qg4.} 8. Bc4 {[%emt 0:00:13]} O-O {[%emt 0:00:12]} 9. O-O {[%emt 0:00:06]} Nxd4 {[%emt 0:00:08]} 10. Bxd4 {[%emt 0:00:37]} Bxd4 {[%emt 0:00:04]} 11. cxd4 {[%emt 0:00:02] [#]} Nxe4 $146 {[%emt 0:00:53][%mdl 64] [#] Remove Defender, Decoy} ({Predecessor:} 11... d5 12. exd5 Nxd5 13. Qf3 Nb6 14. Qc3 Nxc4 15. Nxc4 Be6 16. Rfd1 Qg5 17. Rac1 c6 {0-1 Saya,E (2228)-Ternault,M (2324) C'Chartres Blitz op 2020 (3)}) 12. Nxe4 {[%emt 0:00:21] And now Qf3 would win.} d5 {[%emt 0:00:01]} 13. Bd3 {[%emt 0:00:02] aiming for Nd2.} dxe4 {[%emt 0:00:05]} 14. Bxe4 {[%emt 0:00:02]} Re8 {[%emt 0:01:18]} 15. Qc2 {[%emt 0:00:16]} h6 {[%emt 0:00:53]} 16. Rad1 {[%emt 0:00:04]} Qd6 {[%emt 0:01:48]} 17. h3 {[%emt 0:00:20]} c6 {[%emt 0:00:12]} 18. d5 {[%emt 0:00:41][%cal Rd5c6]} c5 {[%emt 0:00:01]} 19. Bf3 {[%emt 0:00:13]} b6 {[%emt 0:00:13]} 20. Rd2 {[%emt 0:01:54]} Bb7 {[%emt 0:01:07]} 21. Rfd1 {[%emt 0:00:02]} Re5 {[%emt 0:00:10]} 22. a4 {[%emt 0:00:41]} Rae8 {[%emt 0:00:29] ( -> ...Re1+)} 23. g3 {[%emt 0:00:01]} Re1+ {[%emt 0:00:28]} 24. Rxe1 {[%emt 0:00:01]} Rxe1+ {[%emt 0:00:01]} 25. Kg2 {[%emt 0:00:08]} Re5 {[%emt 0:00:08][%cal Rb7d5]} 26. Qb3 {[%emt 0:00:15]} Bc8 {[%emt 0:01:37]} 27. a5 {[%emt 0:01:12]} Bf5 {[%emt 0:00:16]} 28. Qa4 {[%emt 0:00:56] Qc6 is the strong threat.} Bd7 {[%emt 0:00:47] Repels Qc6} 29. Qa3 {[%emt 0:01:16][%mdl 32768] Not much happened in this game.   Weighted Error Value: White=0.04 (flawless) /Black=0.02 (flawless) . Loss on time!?} 1-0

[Event "Rapid Shavuot-A 2023"]
[Site "Ramat Gan"]
[Date "2023.05.25"]
[Round "1.9"]
[White "Lebedinsky, Eduard"]
[Black "Veinberg, Nimrod"]
[Result "0-1"]
[ECO "E35"]
[WhiteElo "2122"]
[BlackElo "2410"]
[Annotator "TA"]
[PlyCount "122"]
[EventDate "2023.05.19"]
[EventType "swiss"]
[EventCountry "ISR"]
[SourceTitle "playchess.com"]
[Source "ChessBase"]
[SourceQuality "1"]
[TimeControl "900+5"]

{[%evp 13,122,22,29,0,0,0,72,26,46,44,53,50,94,85,88,85,90,84,94,58,55,64,62,62,42,52,79,56,60,25,59,45,59,56,55,-218,-215,-262,-288,-268,-300,-383,-382,-541,-366,-480,-473,-606,-606,-862,-852,-839,-816,-1091,-750,-798,-633,-756,-754,-734,-723,-918,-866,-843,-796,-1740,-1740,-1733,-1733,-1726,-1718,-1711,-514,-12848,-2352,-2352,-2352,-4560,-2352,-12847,-12363,-29944,-29950,-29942,-9931,-29940,-29949,-29969,-29970,-29969,-29971,-29974,-29975,-29976,-29976,-29975,-29967,-29978,-29979,-29979,-29979,-29982,-29977,-29979,-29980,-29982,-29983,-29983,-29983,-29984,-29985]} 1. d4 {[%emt 0:00:02]} Nf6 {[%emt 0:00:01]} 2. c4 {[%emt 0:00:02]} e6 {[%emt 0:00:03]} 3. Nc3 {[%emt 0:00:01]} Bb4 {[%emt 0:00:01]} 4. Qc2 {[%emt 0:00:01]} d5 {[%emt 0:00:05]} 5. cxd5 {[%emt 0:00:04]} exd5 {[%emt 0:00:01]} 6. Bg5 {[%emt 0:00:04]} c5 {[%emt 0:00:04]} 7. dxc5 {[%emt 0:00:24]} h6 {[%emt 0:00:10]} 8. Bxf6 {[%emt 0:00:07] E35: Nimzo-Indian: Classical: 4...d5 5 cxd5 exd5.} Qxf6 {[%emt 0:00:02]} 9. e3 {[%emt 0:00:07]} Bf5 {[%emt 0:00:46]} (9... O-O $11 {remains equal.}) 10. Bd3 {[%emt 0:00:40] [#]} ({White should try} 10. Bb5+ $16 Nc6 11. Qb3 Bxc3+ 12. Qxc3) 10... Bxd3 $146 ({Predecessor:} 10... Bxc3+ 11. bxc3 Bxd3 12. Qxd3 Qc6 13. Ne2 Na6 14. Rd1 Rd8 15. Qd4 O-O 16. Nf4 Nxc5 17. Nxd5 {½-½ Sumets,A (2534)-Abbasov,F (2552) La Fere op 7th 2008 (4)}) 11. Qxd3 {[%emt 0:00:02]} Nd7 {[%emt 0:00:16][%cal Bb8d7,Bd7c5,Bc5d3][%mdl 32]} 12. Nge2 {[%emt 0:00:08]} (12. Qxd5 $2 {perishes.} Bxc3+ 13. Kf1 Qa6+ 14. Ne2 Bxb2 $19) (12. Rd1 {simplifies} Bxc3+ 13. Qxc3 Qxc3+ 14. bxc3 Rc8 15. Rxd5 Rxc5 16. Rxc5 Nxc5 17. Ke2) 12... O-O {[%emt 0:00:37]} 13. O-O {[%emt 0:00:23]} Nxc5 {[%emt 0:00:02]} 14. Qxd5 {[%emt 0:00:02]} Rfd8 {[%emt 0:00:04]} 15. Qc4 {[%emt 0:00:18]} Bxc3 {[%emt 0:00:28]} 16. Qxc3 {[%emt 0:00:32]} Qxc3 {[%emt 0:00:04]} 17. Nxc3 {[%emt 0:00:01]} Rd2 {[%emt 0:00:02]} 18. b4 {[%emt 0:00:18]} Nd3 {[%emt 0:00:15]} 19. a3 {[%emt 0:00:10]} a5 {[%emt 0:00:56]} 20. Ne4 {[%emt 0:02:22]} Rc2 {[%emt 0:03:38]} 21. b5 {[%emt 0:01:15]} Re8 {[%emt 0:00:30]} 22. Rfd1 {[%emt 0:00:46]} Rxe4 {[%emt 0:02:53]} 23. Rxd3 $14 {[%emt 0:00:01][%mdl 4096] Endgame KRR-KRR} Rb2 {[%emt 0:00:03]} 24. a4 $2 {[%emt 0:00:22][%mdl 8192] [#] White does not recover from this.} (24. Rd8+ $14 {keeps the upper hand.} Kh7 25. Rd7) 24... Rxa4 $3 $19 {[%emt 0:00:05][%mdl 576] Deflection, Back Rank} 25. Rad1 {[%emt 0:00:25]} (25. Rd8+ Kh7) 25... Raa2 {[%emt 0:06:04]} ({Worse is} 25... Rxb5 26. R3d2 $19) 26. Rf1 {[%emt 0:00:26]} ({Much worse is} 26. Rd8+ Kh7 27. Rf1 Rxb5 $19) 26... Rxb5 {[%emt 0:00:00]} 27. Rd8+ {[%emt 0:00:02]} Kh7 {[%emt 0:00:00]} 28. Rd7 {[%emt 0:00:01]} (28. g4 {keeps fighting.}) 28... Kg6 {[%emt 0:00:00] aiming for ...a4.} 29. Rfd1 {[%emt 0:00:03]} Rbb2 {[%emt 0:00:00]} 30. R7d6+ {[%emt 0:00:08]} Kh7 {[%emt 0:00:25]} 31. R6d4 {[%emt 0:00:33]} Rxf2 {[%emt 0:00:00]} 32. Rg4 {[%emt 0:00:02]} b5 {[%emt 0:00:00][%cal Bb7b5,Bb5b4][%mdl 32]} 33. Rd5 {[%emt 0:00:09]} b4 {[%emt 0:00:00] White must now prevent ...Rfd2.} 34. Rb5 {[%emt 0:00:06]} Rf6 {[%emt 0:00:00][%cal Ra2a1]} 35. h4 {[%emt 0:00:19]} Rg6 {[%emt 0:00:00]} 36. Rxg6 {[%emt 0:00:02]} Kxg6 {[%emt 0:00:00] KR-KR} 37. h5+ {[%emt 0:00:01]} Kf6 {[%emt 0:00:00]} 38. e4 {[%emt 0:00:01]} Re2 {[%emt 0:00:00]} 39. Rxa5 {[%emt 0:00:04]} Rxe4 {[%emt 0:00:00]} 40. Rb5 {[%emt 0:00:02]} Re5 {[%emt 0:00:00]} 41. Rxb4 {[%emt 0:00:01]} Rxh5 {[%emt 0:00:00]} 42. Kf2 {[%emt 0:00:01]} Ra5 {[%emt 0:00:00]} (42... Rf5+ $142 43. Ke3 Ra5) 43. g4 {[%emt 0:00:03]} (43. Kg3 $142 g6 44. Rf4+ Kg7 45. Rc4) 43... Ra3 {[%emt 0:00:00]} (43... Kg5 $142 44. Kg2 Kh4) 44. Rb5 {[%emt 0:00:05]} g6 {[%emt 0:00:00]} 45. Kg2 {[%emt 0:00:02]} Re3 {[%emt 0:00:00] Strongly threatening ...Re5.} 46. Kf2 {[%emt 0:00:08]} Re5 {[%emt 0:00:00]} 47. Rb7 {[%emt 0:00:05]} h5 {[%emt 0:00:00]} 48. gxh5 {[%emt 0:00:02]} Rxh5 {[%emt 0:00:00] ( -> ...Re5)} 49. Kf3 {[%emt 0:00:02]} Rh4 {[%emt 0:00:00] Black mates.} 50. Rb6+ {[%emt 0:00:06]} Kg5 {[%emt 0:00:00]} 51. Rb5+ {[%emt 0:00:08]} f5 {[%emt 0:00:00][%cal Bf7f5,Bf5f4][%mdl 32]} 52. Rb1 {[%emt 0:00:02]} Rh3+ {[%emt 0:00:00]} 53. Kg2 {[%emt 0:00:03]} Ra3 {[%emt 0:00:00]} 54. Rb6 {[%emt 0:00:08]} Kh5 {[%emt 0:00:00]} 55. Rb8 {[%emt 0:00:08]} g5 {[%emt 0:00:00]} 56. Rb4 {[%emt 0:00:08]} f4 {[%emt 0:00:00]} 57. Rb2 {[%emt 0:00:16]} Kg4 {[%emt 0:00:00]} 58. Kf2 {[%emt 0:00:01]} Rh3 {[%emt 0:00:00]} 59. Rb5 {[%emt 0:00:19]} Rh2+ {[%emt 0:00:00]} 60. Kg1 {[%emt 0:00:01]} Ra2 {[%emt 0:00:00]} 61. Rb4 {[%emt 0:00:04]} Kg3 {[%emt 0:00:00] Weighted Error Value: White=0.67/Black=0.35} 0-1

[Event "Rapid Shavuot-A 2023"]
[Site "Ramat Gan"]
[Date "2023.05.25"]
[Round "1.10"]
[White "Kochavi, Ori"]
[Black "Adar, Idan"]
[Result "1/2-1/2"]
[ECO "A65"]
[WhiteElo "2423"]
[BlackElo "2085"]
[Annotator "TA"]
[PlyCount "55"]
[EventDate "2023.05.19"]
[EventType "swiss"]
[EventCountry "ISR"]
[SourceTitle "playchess.com"]
[Source "ChessBase"]
[SourceQuality "1"]
[TimeControl "900+5"]

{[%evp 16,55,6,26,42,29,70,29,70,0,77,-3,16,0,18,0,0,0,24,11,108,110,229,205,222,226,353,331,343,310,854,843,850,827,815,806,1148,1141,1118,1079,1071,1053]} 1. d4 {[%emt 0:00:01]} Nf6 {[%emt 0:00:01]} 2. c4 {[%emt 0:00:03]} g6 {[%emt 0:00:01]} 3. Nc3 {[%emt 0:00:01]} Bg7 {[%emt 0:00:01]} 4. e4 {[%emt 0:00:02]} d6 {[%emt 0:00:01]} 5. f3 {[%emt 0:00:01]} O-O {[%emt 0:00:02]} 6. Be3 {[%emt 0:00:01]} c5 {[%emt 0:00:01]} 7. d5 {[%emt 0:00:02]} e6 {[%emt 0:00:08]} 8. Qd2 {[%emt 0:00:02]} exd5 9. cxd5 {[%emt 0:00:02]} (9. Nxd5 Nxd5 10. cxd5 f5 $15) 9... Ne8 {[%emt 0:00:43] A65: Modern Benoni: 6 e4.} 10. Nge2 {[%emt 0:00:42] [#]} f5 $146 {[%emt 0:00:41]} ({Predecessor:} 10... a6 11. a4 Nd7 12. Ng3 Ne5 13. Be2 h5 14. O-O Kh7 15. h3 Rb8 16. f4 Nd7 17. Bd3 {1-0 Leon Acevedo,J (1799)-Valencia Quinchia,I (1416) Medellin Feria de las Flores op 2022 (2)}) 11. Nf4 {[%emt 0:00:18]} ({Much weaker is} 11. Bg5 Qb6 $11) 11... Nc7 {[%emt 0:00:52] Repels Ne6. White has an edge.} 12. a4 {[%emt 0:00:24]} (12. exf5 $14 Bxf5 13. O-O-O) 12... Nd7 {[%emt 0:02:17]} (12... fxe4 $11 13. Nxe4 Bf5) 13. exf5 {[%emt 0:00:54] White is more active.} (13. Ne6 $16 Nxe6 14. dxe6) 13... Rxf5 $11 {[%emt 0:00:19]} 14. Bd3 {[%emt 0:00:02]} Re5 {[%emt 0:00:18]} 15. Be4 {[%emt 0:00:14]} Nf6 {[%emt 0:00:45]} 16. O-O {[%emt 0:00:04]} Qe8 {[%emt 0:02:01]} 17. Rae1 {[%emt 0:00:46]} Bd7 {[%emt 0:00:46] [#]} (17... b5 $11) 18. Nd3 $1 $16 {[%emt 0:00:03]} Re7 {[%emt 0:00:01] [#]} (18... Nxe4 $16 19. fxe4 Rxe4) 19. Bf4 $1 $18 {[%emt 0:00:03]} Nxe4 {[%emt 0:02:14]} 20. Nxe4 {[%emt 0:00:15]} Bd4+ {[%emt 0:00:00]} (20... Nxd5 {might work better.} 21. Bxd6 c4) 21. Kh1 {[%emt 0:00:04]} Nxd5 {[%emt 0:00:02]} 22. Bxd6 {[%emt 0:00:14]} Re6 $2 {[%emt 0:00:24]} (22... b6 23. Ndxc5 bxc5) 23. Ndxc5 {[%emt 0:00:27] White is clearly winning.} ({Stronger than} 23. Nexc5 Be3 24. Rxe3 Nxe3 $17) 23... Bxc5 {[%emt 0:01:11]} 24. Qxd5 {[%emt 0:00:02]} Bxd6 {[%emt 0:00:51]} 25. Nf6+ {[%emt 0:00:02]} Kf7 {[%emt 0:00:00]} 26. Nxe8 {[%emt 0:00:04]} Raxe8 {[%emt 0:00:01]} 27. Rxe6 {[%emt 0:00:09]} Rxe6 {[%emt 0:00:01]} 28. Re1 {[%emt 0:00:08][%mdl 32768] Weighted Error Value: White=0.15 (very precise) /Black=0.55. An unexpected result.} 1/2-1/2

[Event "Rapid Shavuot-A 2023"]
[Site "Ramat Gan"]
[Date "2023.05.25"]
[Round "1.11"]
[White "Duchan, Yoav"]
[Black "Aizenberg, Benny"]
[Result "1/2-1/2"]
[ECO "B99"]
[WhiteElo "1906"]
[BlackElo "2403"]
[Annotator "TA"]
[PlyCount "26"]
[EventDate "2023.05.19"]
[EventType "swiss"]
[EventCountry "ISR"]
[SourceTitle "playchess.com"]
[Source "ChessBase"]
[SourceQuality "1"]
[TimeControl "900+5"]

{[%evp 18,26,26,18,109,93,116,118,500,255,331]} 1. e4 {[%emt 0:00:01]} c5 {[%emt 0:00:02]} 2. Nf3 {[%emt 0:00:01]} d6 {[%emt 0:00:01]} 3. d4 {[%emt 0:00:01]} cxd4 {[%emt 0:00:01]} 4. Nxd4 {[%emt 0:00:01]} Nf6 {[%emt 0:00:01]} 5. Nc3 {[%emt 0:00:01]} a6 {[%emt 0:00:01]} 6. Bg5 {[%emt 0:00:09]} e6 {[%emt 0:00:02]} 7. f4 {[%emt 0:00:01]} Be7 {[%emt 0:00:00]} 8. Qf3 {[%emt 0:00:06]} Qc7 {[%emt 0:00:03]} 9. O-O-O {[%emt 0:00:03]} Nbd7 {[%emt 0:00:02]} 10. g4 {[%emt 0:00:03][%cal Bg2g4,Bg4g5][%mdl 32]} b6 {[%emt 0:00:02] [#] B99: Sicilian Najdorf: 6 Bg5 e6 7 f4 Be7 8 Qf3 Qc7 9 0-0-0 Nbd7.} (10... b5 $11 {keeps the balance.}) 11. Bxf6 $1 $16 {[%emt 0:00:24]} Nxf6 {[%emt 0:00:03]} 12. g5 {[%emt 0:00:01] [#] White is more active.} b5 $146 {[%emt 0:00:01][%mdl 8192]} ({Predecessor:} 12... Nd7 13. h4 Bb7 14. Bg2 Rc8 15. h5 b5 16. a3 d5 17. exd5 Bxa3 18. bxa3 Qxc3 19. Qxc3 Rxc3 20. dxe6 Bxg2 21. exf7+ {1-0 Wankhade,S (1331)-Wu,R Wch U08 Girls 2014 (2)}) 13. f5 {[%emt 0:00:01]} Nd7 {[%emt 0:00:02][%mdl 32768] Black got outplayed after the opening.   Weighted Error Value: White=0.48/Black=2.10. An unexpected result.} 1/2-1/2